bitfinex/quotes_BTCUSD_20250109
["timestamp","ask_amount","ask_price","bid_price","bid_amount"]
[1736459485971,0.216811,92247.0,92243.0,0.00014809]
[1736459486195,0.001,92244.0,92243.0,0.00014809]
[1736459487448,0.15,92246.0,92243.0,0.00014809]
[1736459487658,0.216813,92245.0,92243.0,0.00014809]
[1736459487880,0.003,92244.0,92243.0,0.00014809]
[1736459488304,0.216813,92245.0,92243.0,0.00014809]
[1736459488515,0.216813,92245.0,92219.0,0.433747]
[1736459488722,0.21683,92238.0,92230.0,5.344e-05]
[1736459489583,0.216827,92240.0,92230.0,5.344e-05]
[1736459489584,0.15,92239.0,92230.0,5.344e-05]
[1736459489790,0.21684,92234.0,92230.0,5.344e-05]
[1736459490878,0.433681,92234.0,92230.0,5.344e-05]
[1736459491631,0.434681,92234.0,92230.0,5.344e-05]
[1736459492916,0.001,92234.0,92230.0,5.344e-05]
[1736459493540,0.217841,92234.0,92219.0,0.20792642]
[1736459493757,0.217841,92234.0,92219.0,0.2080746]
[1736459494134,0.216844,92232.0,92219.0,0.00014818]
[1736459497465,0.03043143,92234.0,92220.0,0.10429976]
[1736459497674,0.03043143,92234.0,92227.0,0.216855]
[1736459497815,0.15,92243.0,92227.0,0.216855]
[1736459498010,0.15,92241.0,92227.0,0.216855]
[1736459498715,0.001,92234.0,92227.0,0.20785498]
[1736459499190,0.001,92234.0,92225.0,0.216858]
[1736459499431,0.001,92234.0,92225.0,0.32115776]
[1736459500723,0.216827,92240.0,92225.0,0.32115776]
[1736459501127,0.002,92241.0,92226.0,0.10429976]
[1736459501342,0.002,92241.0,92227.0,0.07058416]
[1736459501559,0.03015925,92244.0,92234.0,0.216839]
[1736459501774,0.03015925,92244.0,92238.0,0.216829]
[1736459501989,0.216798,92252.0,92238.0,0.294729]
[1736459502196,0.002,92240.0,92238.0,0.0779]
[1736459502616,0.216809,92247.0,92227.0,0.1244]
[1736459502869,0.216826,92240.0,92227.0,0.0779]
[1736459504428,0.216826,92240.0,92227.0,0.06889998]
[1736459504626,0.216872,92220.0,92219.0,0.00014818]
[1736459505253,0.216866,92223.0,92219.0,0.00014818]
[1736459505605,0.216867,92222.0,92219.0,0.00014818]
[1736459506219,0.002,92220.0,92219.0,0.00014818]
[1736459507681,0.216867,92222.0,92219.0,0.00014818]
[1736459507903,0.433735,92222.0,92219.0,0.00014818]
[1736459508089,0.216872,92220.0,92219.0,0.00014818]
[1736459508493,0.216867,92222.0,92210.0,0.20804216]
[1736459509049,0.217867,92222.0,92210.0,0.20804216]
[1736459509491,0.216867,92222.0,92210.0,0.20804216]
[1736459510362,0.03073571,92223.0,92210.0,0.20804216]
[1736459510560,0.03073571,92223.0,92214.0,0.216885]
[1736459510822,0.216863,92224.0,92214.0,0.216885]
[1736459511003,0.001,92222.0,92214.0,0.216885]
[1736459511502,0.216863,92224.0,92214.0,0.216885]
[1736459511922,0.001,92223.0,92214.0,0.216885]
[1736459512274,0.24765633,92228.0,92214.0,0.216885]
[1736459512479,0.24765633,92228.0,92209.0,0.00058025]
[1736459512480,0.01800004,92227.0,92209.0,0.00058025]
[1736459512684,0.002,92224.0,92210.0,0.216896]
[1736459513628,0.002,92224.0,92214.0,0.216886]
[1736459514079,0.002,92224.0,92220.0,0.216872]
[1736459514299,0.002,92224.0,92222.0,0.216867]
[1736459514547,0.24799525,92239.0,92223.0,0.10429976]
[1736459514724,0.24799525,92239.0,92224.0,0.216863]
[1736459514960,0.002,92228.0,92225.0,0.10429976]
[1736459515167,0.002,92228.0,92225.0,0.32115976]
[1736459515372,0.03116625,92239.0,92225.0,0.32115976]
[1736459515615,0.216832,92237.0,92225.0,0.32115976]
[1736459518477,0.218832,92237.0,92225.0,0.32115976]
[1736459518617,0.218832,92237.0,92225.0,0.21686]
[1736459518819,0.218832,92237.0,92221.0,0.0764]
[1736459518820,0.002,92237.0,92229.0,0.216849]
[1736459519028,0.002,92237.0,92221.0,0.0764]
[1736459519230,0.002,92237.0,92231.0,0.216846]
[1736459519458,0.002,92237.0,92227.0,0.216855]
[1736459520573,0.218834,92237.0,92227.0,0.216855]
[1736459520781,0.216862,92225.0,92208.0,0.0485]
[1736459520990,0.13574935,92230.0,92211.0,0.0807]
[1736459521197,0.13574935,92220.0,92203.0,0.0772]
[1736459521405,0.13574935,92220.0,92201.0,8.51e-05]
[1736459521406,0.216891,92212.0,92201.0,8.51e-05]
[1736459521777,0.433783,92212.0,92201.0,8.51e-05]
[1736459522013,0.433783,92212.0,92209.0,0.00158025]
[1736459522220,0.216891,92212.0,92209.0,0.00158025]
[1736459522473,0.21634977,92212.0,92209.0,0.00058025]
[1736459522674,0.43324177,92212.0,92209.0,0.00058025]
[1736459522823,0.43624177,92212.0,92209.0,0.00058025]
[1736459523614,0.216903,92207.0,92195.0,0.20859533]
[1736459523861,0.216903,92207.0,92195.0,0.20874318]
[1736459524462,0.216893,92211.0,92198.0,0.216922]
[1736459524668,0.002,92212.0,92199.0,0.10538432]
[1736459524997,0.002,92212.0,92199.0,0.10429976]
[1736459525588,0.433722,92225.0,92200.0,0.00108446]
[1736459525919,0.216845,92232.0,92201.0,0.10429976]
[1736459525920,0.13574935,92220.0,92201.0,0.10429976]
[1736459526102,0.001,92207.0,92201.0,0.10429976]
[1736459526658,0.001,92207.0,92198.0,0.216924]
[1736459527127,0.216905,92206.0,92195.0,0.00014785]
[1736459527361,0.216899,92209.0,92195.0,0.00014785]
[1736459527362,0.216929,92196.0,92195.0,0.00014785]
[1736459527564,0.366929,92196.0,92195.0,0.00014785]
[1736459528713,0.366929,92196.0,92177.0,0.216973]
[1736459528714,0.216947,92189.0,92180.0,0.00481803]
[1736459528915,0.216933,92194.0,92180.0,0.00481803]
[1736459529331,9.129e-05,92196.0,92180.0,0.10911779]
[1736459529537,9.129e-05,92196.0,92181.0,0.10429976]
[1736459529753,0.03122413,92196.0,92186.0,0.216951]
[1736459529929,0.03122413,92196.0,92182.0,0.216962]
[1736459530160,9.129e-05,92196.0,92183.0,0.32125876]
[1736459530363,9.129e-05,92196.0,92187.0,0.216949]
[1736459531788,9.129e-05,92196.0,92183.0,0.32125876]
[1736459531789,0.21702129,92196.0,92183.0,0.10429976]
[1736459531992,9.129e-05,92196.0,92184.0,0.216957]
[1736459532199,9.129e-05,92196.0,92184.0,0.32125676]
[1736459533547,9.129e-05,92196.0,92184.0,0.52921374]
[1736459535777,9.129e-05,92196.0,92184.0,0.31225674]
[1736459535990,9.129e-05,92196.0,92180.0,0.00481803]
[1736459535991,0.216943,92191.0,92180.0,0.00481803]
[1736459536204,0.13574935,92190.0,92180.0,0.00481803]
[1736459536429,0.216964,92181.0,92180.0,0.00481803]
[1736459537593,0.366964,92181.0,92180.0,0.00481803]
[1736459538226,0.367964,92181.0,92180.0,0.00481803]
[1736459538625,0.216999,92167.0,92156.0,0.21309521]
[1736459539037,0.0832,92166.0,92150.0,8.51e-05]
[1736459539241,0.217031,92153.0,92150.0,8.51e-05]
[1736459539447,0.434062,92153.0,92150.0,8.51e-05]
[1736459539883,0.43373942,92153.0,92150.0,8.51e-05]
[1736459540732,0.00014841,92153.0,92150.0,8.51e-05]
[1736459540943,0.00114841,92153.0,92150.0,8.51e-05]
[1736459541374,0.00014841,92153.0,92150.0,8.51e-05]
[1736459541584,0.00014841,92153.0,92150.0,0.0010851]
[1736459542211,0.03134735,92153.0,92150.0,0.0010851]
[1736459542477,0.217032,92152.0,92150.0,0.0010851]
[1736459543056,0.217032,92152.0,92150.0,8.51e-05]
[1736459543593,0.217032,92152.0,92138.0,0.20815008]
[1736459543820,0.217032,92152.0,92138.0,0.42521508]
[1736459544039,0.03134735,92153.0,92142.0,0.217055]
[1736459544256,0.001,92152.0,92143.0,0.10429976]
[1736459544477,0.001,92152.0,92148.0,0.434081]
[1736459544688,0.03134735,92153.0,92148.0,0.21704]
[1736459544915,0.00014841,92153.0,92152.0,0.217032]
[1736459545124,0.00014841,92153.0,92152.0,0.295732]
[1736459547420,0.00014841,92153.0,92152.0,0.0787]
[1736459547421,0.00114841,92153.0,92152.0,0.0787]
[1736459547631,0.00114841,92153.0,92144.0,0.295751]
[1736459547844,0.00014841,92153.0,92144.0,0.295751]
[1736459548280,0.00014841,92153.0,92152.0,0.001]
[1736459548695,0.00014841,92153.0,92144.0,0.28775098]
[1736459548938,0.00014841,92153.0,92148.0,0.217041]
[1736459549596,0.00014841,92153.0,92152.0,0.217032]
[1736459549811,0.00014841,92153.0,92149.0,0.10429976]
[1736459550049,0.00014841,92153.0,92144.0,0.001]
[1736459550259,0.00014841,92153.0,92140.0,0.21706]
[1736459550679,0.00114841,92153.0,92140.0,0.21706]
[1736459550884,0.00114841,92153.0,92143.0,0.217051]
[1736459551092,0.217032,92152.0,92140.0,0.21706]
[1736459551518,0.00114841,92153.0,92144.0,0.217049]
[1736459551954,0.15014841,92153.0,92129.0,0.217086]
[1736459552166,0.35281235,92140.0,92126.0,0.2171781]
[1736459552346,0.35281235,92140.0,92128.0,0.217089]
[1736459552496,0.13574935,92140.0,92128.0,0.217089]
[1736459552736,0.217063,92139.0,92128.0,0.217089]
[1736459552944,0.217072,92135.0,92127.0,0.10429976]
[1736459553141,0.13574935,92140.0,92126.0,8.51e-05]
[1736459553142,0.217084,92131.0,92126.0,8.51e-05]
[1736459553508,0.217091,92127.0,92126.0,8.51e-05]
[1736459553711,0.2171,92124.0,92114.0,0.06998508]
[1736459554018,0.2171,92124.0,92109.0,0.217132]
[1736459554019,0.13574935,92124.0,92109.0,0.217132]
[1736459554236,0.217113,92118.0,92106.0,0.217139]
[1736459554721,0.217103,92122.0,92110.0,0.21713]
[1736459555173,0.21725133,92122.0,92110.0,0.21713]
[1736459555640,0.00014833,92122.0,92114.0,0.434244]
[1736459555849,0.00014833,92122.0,92119.0,0.217108]
[1736459556063,0.00014833,92122.0,92110.0,0.21713]
[1736459556064,0.00014833,92122.0,92116.0,0.217117]
[1736459556716,0.00014833,92122.0,92112.0,0.0789]
[1736459556931,0.00014833,92122.0,92120.0,0.217106]
[1736459557138,0.00014833,92122.0,92121.0,0.10429976]
[1736459558636,0.00014833,92122.0,92121.0,0.09529974]
[1736459559329,0.00014833,92122.0,92121.0,0.09729974]
[1736459559535,0.15,92148.0,92121.0,0.09729974]
[1736459559773,0.217059,92141.0,92127.0,0.21709]
[1736459560208,0.13574935,92140.0,92127.0,0.21709]
[1736459560795,0.217059,92141.0,92127.0,0.21709]
[1736459561610,0.003,92148.0,92127.0,0.21709]
[1736459561983,0.15,92149.0,92127.0,0.21709]
[1736459562231,0.15,92139.0,92112.0,0.0789]
[1736459562437,0.217089,92128.0,92114.0,0.32142076]
[1736459562660,0.217107,92121.0,92112.0,0.0789]
[1736459563782,0.217099,92124.0,92112.0,0.0789]
[1736459563909,0.217099,92124.0,92113.0,0.00057956]
[1736459564322,0.217099,92124.0,92112.0,0.07047954]
[1736459564523,0.21759354,92124.0,92112.0,0.07047954]
[1736459564950,0.21759354,92124.0,92113.0,0.002]
[1736459565961,0.21759354,92124.0,92112.0,0.07047954]
[1736459566722,0.02431218,92124.0,92112.0,0.07047954]
[1736459566930,0.02431218,92124.0,92117.0,0.217115]
[1736459568632,0.02431218,92124.0,92117.0,0.20811498]
[1736459568841,0.02431218,92124.0,92114.0,0.217119]
[1736459569698,0.02431218,92124.0,92114.0,0.43424]
[1736459569954,0.02431218,92124.0,92112.0,0.07047954]
[1736459570427,0.02431218,92124.0,92113.0,0.217124]
[1736459570901,0.02431218,92124.0,92112.0,0.07047954]
[1736459571152,0.00049454,92124.0,92112.0,0.1747793]
[1736459571355,0.00049454,92124.0,92122.0,0.217102]
[1736459571948,0.00149454,92124.0,92122.0,0.217102]
[1736459572322,0.00049454,92124.0,92122.0,0.217102]
[1736459572728,0.00149454,92124.0,92123.0,0.12838519]
[1736459572953,0.00149454,92124.0,92123.0,0.20968519]
[1736459573153,0.00149454,92124.0,92123.0,0.20859976]
[1736459573542,0.00149454,92124.0,92123.0,0.19959974]
[1736459574018,0.00149454,92124.0,92123.0,0.17659974]
[1736459574154,0.00049454,92124.0,92123.0,0.0813]
[1736459575347,0.00049454,92124.0,92123.0,0.0843]
[1736459575997,0.00049454,92124.0,92123.0,0.0813]
[1736459576208,0.00049454,92124.0,92123.0,0.0823]
[1736459576411,0.00049454,92124.0,92123.0,0.10529976]
[1736459576615,0.00049454,92124.0,92123.0,0.001]
[1736459577358,0.00049454,92124.0,92117.0,0.217113]
[1736459577710,0.00049454,92124.0,92118.0,0.217112]
[1736459578113,0.00049454,92124.0,92118.0,0.434224]
[1736459578354,0.00049454,92124.0,92123.0,0.001]
[1736459578570,0.217101,92123.0,92106.0,0.20913798]
[1736459578807,0.13574935,92120.0,92106.0,0.20913798]
[1736459579014,0.35285835,92120.0,92118.0,0.001]
[1736459579224,0.217109,92120.0,92118.0,0.001]
[1736459579570,0.295109,92120.0,92118.0,0.001]
[1736459580453,0.217124,92114.0,92103.0,0.00509228]
[1736459581313,0.13574935,92113.0,92103.0,0.00509228]
[1736459581824,0.217126,92112.0,92103.0,0.00509228]
[1736459582326,0.217137,92108.0,92103.0,0.00509228]
[1736459583159,0.217126,92112.0,92103.0,0.00509228]
[1736459583568,0.217126,92112.0,92097.0,0.21333736]
[1736459583779,0.02395358,92114.0,92100.0,0.023]
[1736459583994,0.217084,92130.0,92116.0,0.217116]
[1736459584196,0.02355385,92119.0,92116.0,0.217116]
[1736459584404,0.217078,92133.0,92116.0,0.217116]
[1736459584610,0.02363454,92124.0,92113.0,0.217123]
[1736459585024,0.00049454,92124.0,92113.0,0.217123]
[1736459587430,0.00049454,92124.0,92115.0,0.217119]
[1736459588503,0.00049454,92124.0,92115.0,0.20811898]
[1736459589278,0.00049454,92124.0,92114.0,0.0811]
[1736459589482,0.00049454,92124.0,92116.0,0.32141676]
[1736459589662,0.00049454,92124.0,92116.0,0.10429976]
[1736459590388,0.00049454,92124.0,92117.0,0.217115]
[1736459591254,0.00049454,92124.0,92117.0,0.43423]
[1736459591671,0.00049454,92124.0,92117.0,0.217115]
[1736459591956,0.00049454,92124.0,92114.0,0.0811]
[1736459592168,0.217101,92123.0,92104.0,0.217145]
[1736459592367,0.21713,92111.0,92098.0,0.0486]
[1736459592580,0.21713,92111.0,92098.0,0.15289976]
[1736459592789,0.21713,92111.0,92098.0,0.10429976]
[1736459593426,0.13574935,92110.0,92094.0,8.51e-05]
[1736459593632,0.217148,92103.0,92081.0,0.20836918]
[1736459593805,0.21715,92102.0,92086.0,0.217187]
[1736459594233,0.217162,92098.0,92086.0,0.217187]
[1736459595834,0.217147,92104.0,92090.0,0.217178]
[1736459596044,0.217147,92104.0,92094.0,0.217169]
[1736459596255,0.217148,92103.0,92081.0,0.10429976]
[1736459596458,0.217155,92100.0,92088.0,0.217181]
[1736459596666,0.217136,92108.0,92089.0,0.10429976]
[1736459596876,0.0234994,92108.0,92099.0,0.217156]
[1736459597083,0.2406354,92108.0,92091.0,0.217176]
[1736459597290,0.217136,92108.0,92096.0,0.217162]
[1736459597899,0.24034527,92112.0,92096.0,0.217162]
[1736459598723,0.001,92108.0,92094.0,0.217168]
[1736459598864,0.001,92108.0,92094.0,0.434336]
[1736459599061,0.001,92108.0,92098.0,0.217159]
[1736459599461,0.001,92108.0,92103.0,0.217147]
[1736459599673,0.001,92108.0,92103.0,0.434294]
[1736459599878,0.21759354,92124.0,92103.0,0.434294]
[1736459599879,0.21759354,92124.0,92104.0,0.10429976]
[1736459600246,0.21711,92119.0,92102.0,0.217149]
[1736459600454,0.002,92112.0,92102.0,0.217149]
[1736459600769,0.434221,92119.0,92103.0,0.217148]
[1736459601182,0.0274769,92124.0,92105.0,0.023]
[1736459601436,0.0274769,92124.0,92104.0,0.23149976]
[1736459601437,0.0274769,92124.0,92107.0,0.023]
[1736459601653,0.0244769,92124.0,92109.0,0.023]
[1736459601895,0.0244769,92124.0,92121.0,0.217105]
[1736459602309,0.0244769,92124.0,92121.0,0.43421]
[1736459602310,0.00049454,92124.0,92121.0,0.43421]
[1736459602719,0.00049454,92124.0,92121.0,0.217105]
[1736459602928,0.00049454,92124.0,92121.0,0.43421]
[1736459603144,0.00049454,92124.0,92122.0,0.10429976]
[1736459603355,0.00049454,92124.0,92123.0,0.32038635]
[1736459603563,0.00049454,92124.0,92123.0,0.41460074]
[1736459603770,0.00049454,92124.0,92123.0,0.46040074]
[1736459604177,0.00149454,92124.0,92123.0,0.46040074]
[1736459604581,0.00049454,92124.0,92123.0,0.50522956]
[1736459605025,0.00049454,92124.0,92123.0,0.46340074]
[1736459605436,0.00049454,92124.0,92123.0,0.46040074]
[1736459605867,0.00049454,92124.0,92123.0,0.46340074]
[1736459606791,0.00049454,92124.0,92123.0,0.33840074]
[1736459607012,0.00049454,92124.0,92123.0,0.10729976]
[1736459607223,0.00049454,92124.0,92123.0,0.003]
[1736459607638,0.00049454,92124.0,92118.0,0.21711]
[1736459608046,0.00049454,92124.0,92123.0,0.003]
[1736459608477,0.217074,92135.0,92115.0,0.217117]
[1736459608680,0.217082,92131.0,92117.0,0.217115]
[1736459609455,0.24637112,92135.0,92117.0,0.217115]
[1736459609657,0.46344512,92135.0,92117.0,0.217115]
[1736459610239,0.00011805,92135.0,92131.0,0.217082]
[1736459610462,0.00011805,92135.0,92120.0,0.023]
[1736459610676,0.00111805,92135.0,92130.0,0.217083]
[1736459611293,0.00011805,92135.0,92130.0,0.217083]
[1736459612203,0.00011805,92135.0,92127.0,0.217089]
[1736459612633,0.00011805,92135.0,92131.0,0.21708]
[1736459612845,0.00011805,92135.0,92116.0,0.217115]
[1736459613050,0.00011805,92135.0,92116.0,0.32141476]
[1736459613518,0.0807,92134.0,92116.0,0.31241474]
[1736459613721,0.297775,92134.0,92116.0,0.31241474]
[1736459613926,0.297775,92134.0,92130.0,0.001]
[1736459614390,0.297775,92134.0,92116.0,0.31241474]
[1736459614807,0.297775,92134.0,92120.0,0.217107]
[1736459615178,0.299775,92134.0,92120.0,0.217107]
[1736459615907,0.297775,92134.0,92120.0,0.217107]
[1736459617000,0.297775,92134.0,92116.0,0.31241474]
[1736459617204,0.299775,92134.0,92116.0,0.31241474]
[1736459617510,0.217079,92132.0,92116.0,0.31241474]
[1736459617936,0.298775,92134.0,92120.0,0.217107]
[1736459618324,0.297775,92134.0,92120.0,0.217107]
[1736459618528,0.297775,92134.0,92120.0,0.20810698]
[1736459618747,0.001,92132.0,92120.0,0.20810698]
[1736459618983,0.001,92132.0,92129.0,0.217085]
[1736459619197,0.001,92132.0,92131.0,0.240082]
[1736459619377,0.001,92132.0,92131.0,0.34438176]
[1736459620100,0.217017,92159.0,92139.0,0.217063]
[1736459620701,0.217017,92159.0,92140.0,0.21706]
[1736459621138,0.15,92156.0,92141.0,0.021706]
[1736459621471,0.15,92156.0,92142.0,0.217056]
[1736459621685,0.220017,92159.0,92133.0,0.023]
[1736459621686,0.003,92159.0,92133.0,0.023]
[1736459621860,0.217012,92161.0,92135.0,0.023]
[1736459622064,0.217012,92161.0,92144.0,0.217049]
[1736459622378,0.003,92159.0,92144.0,0.217049]
[1736459622786,0.217018,92158.0,92144.0,0.217049]
[1736459623216,0.003,92159.0,92144.0,0.217049]
[1736459623788,0.217018,92158.0,92144.0,0.217049]
[1736459624240,0.217018,92158.0,92144.0,0.20804898]
[1736459624388,0.217018,92158.0,92135.0,0.240072]
[1736459624389,0.03180703,92161.0,92135.0,0.240072]
[1736459624628,0.217034,92152.0,92135.0,0.34437176]
[1736459626052,0.001,92152.0,92131.0,0.217081]
[1736459626208,0.217045,92147.0,92131.0,0.217081]
[1736459627459,0.217035,92151.0,92130.0,0.217084]
[1736459627668,0.217035,92151.0,92134.0,0.217073]
[1736459628058,0.217035,92151.0,92134.0,0.434147]
[1736459628259,0.217035,92151.0,92129.0,0.023]
[1736459628260,0.001,92147.0,92135.0,0.32137076]
[1736459628501,0.001,92147.0,92135.0,0.31237074]
[1736459628868,0.217016,92159.0,92135.0,0.31237074]
[1736459629066,0.001,92151.0,92142.0,0.217055]
[1736459629282,0.001,92151.0,92146.0,0.217044]
[1736459629482,0.001,92151.0,92143.0,0.217051]
[1736459630108,0.001,92151.0,92143.0,0.434104]
[1736459630318,0.02975591,92159.0,92143.0,0.217051]
[1736459630837,0.001,92147.0,92140.0,0.21706]
[1736459631067,0.001,92147.0,92144.0,0.21705]
[1736459631283,0.217009,92162.0,92144.0,0.21705]
[1736459631486,0.003,92159.0,92144.0,0.21705]
[1736459631698,0.217018,92158.0,92144.0,0.21705]
[1736459631903,0.003,92159.0,92149.0,0.217039]
[1736459632111,0.217009,92162.0,92149.0,0.217039]
[1736459632320,0.217009,92162.0,92144.0,0.21705]
[1736459632519,0.0296987,92163.0,92144.0,0.10429976]
[1736459632763,0.001,92147.0,92144.0,0.10429976]
[1736459632984,0.001,92147.0,92145.0,0.217049]
[1736459633629,0.001,92147.0,92145.0,0.20804898]
[1736459634058,0.217004,92164.0,92146.0,0.217045]
[1736459634292,0.217011,92161.0,92146.0,0.217045]
[1736459635220,0.24649705,92164.0,92150.0,0.217037]
[1736459635455,0.02949305,92164.0,92155.0,0.217025]
[1736459635853,0.15014825,92169.0,92159.0,0.217015]
[1736459636058,0.15014825,92169.0,92142.0,0.023]
[1736459636268,0.00014825,92169.0,92156.0,0.217023]
[1736459636476,0.00014825,92169.0,92165.0,0.217001]
[1736459636711,0.00014825,92169.0,92166.0,0.10538476]
[1736459636920,0.00014825,92169.0,92168.0,0.216995]
[1736459637147,0.00014825,92169.0,92168.0,0.34429476]
[1736459638549,0.00014825,92169.0,92168.0,0.42639472]
[1736459638873,0.00014825,92169.0,92168.0,0.33529474]
[1736459639073,0.00014825,92169.0,92168.0,0.33829474]
[1736459640334,0.00014825,92169.0,92168.0,0.33529474]
[1736459640753,0.00014825,92169.0,92168.0,0.33829474]
[1736459641195,0.00014825,92169.0,92168.0,0.33529474]
[1736459641435,0.00014825,92169.0,92168.0,0.50387071]
[1736459641648,0.0001702,92189.0,92170.0,0.36699]
[1736459641833,0.0001702,92189.0,92170.0,0.57198976]
[1736459642138,4e-07,92171.0,92170.0,0.72038976]
[1736459642379,4e-07,92171.0,92170.0,0.82468952]
[1736459643430,4e-07,92171.0,92170.0,0.62914976]
[1736459643666,4e-07,92171.0,92170.0,0.61138974]
[1736459643851,4e-07,92171.0,92170.0,0.62014974]
[1736459644112,0.0010004,92171.0,92170.0,0.62314974]
[1736459644442,4e-07,92171.0,92170.0,0.62014974]
[1736459644850,0.0010004,92171.0,92170.0,0.62314974]
[1736459645058,0.0010004,92171.0,92170.0,0.7274495]
[1736459645487,4e-07,92171.0,92170.0,0.7244495]
[1736459645953,4e-07,92171.0,92170.0,0.9244495]
[1736459646166,0.0001702,92189.0,92188.0,0.315847]
[1736459646374,0.0001702,92189.0,92188.0,0.42014676]
[1736459646758,0.0001702,92189.0,92188.0,0.34424676]
[1736459647189,0.0001702,92189.0,92183.0,0.216959]
[1736459647399,0.0001702,92189.0,92183.0,0.216958]
[1736459647609,0.0001702,92189.0,92180.0,0.216966]
[1736459647812,0.0001702,92189.0,92182.0,0.216962]
[1736459648424,0.0001702,92189.0,92181.0,0.10429976]
[1736459648598,0.0001702,92189.0,92181.0,0.09529974]
[1736459648839,0.0001702,92189.0,92182.0,0.216962]
[1736459649033,0.02896022,92189.0,92177.0,0.216973]
[1736459649235,0.0001702,92189.0,92177.0,0.216973]
[1736459649593,0.0001702,92189.0,92177.0,0.433946]
[1736459650014,0.0001702,92189.0,92174.0,0.023]
[1736459650221,0.216961,92183.0,92175.0,0.10429976]
[1736459650643,0.21695,92187.0,92175.0,0.32127676]
[1736459650812,0.0001702,92189.0,92180.0,0.216965]
[1736459651294,0.0001702,92189.0,92181.0,0.216964]
[1736459651427,0.0001702,92189.0,92175.0,0.10429976]
[1736459651631,0.0001702,92189.0,92178.0,0.216969]
[1736459651881,0.2181152,92189.0,92178.0,0.216969]
[1736459652420,0.2181152,92189.0,92170.0,0.00876]
[1736459652421,0.216955,92185.0,92172.0,0.216984]
[1736459652626,0.216955,92185.0,92150.0,0.15]
[1736459652627,0.216985,92172.0,92162.0,0.217006]
[1736459652835,0.18169976,92188.0,92162.0,0.217006]
[1736459653010,0.216985,92173.0,92162.0,0.217006]
[1736459653625,0.216985,92173.0,92162.0,0.20800598]
[1736459654001,0.216985,92173.0,92161.0,0.217011]
[1736459654207,0.216977,92176.0,92160.0,0.023]
[1736459654406,0.216964,92181.0,92166.0,0.216997]
[1736459654611,0.216974,92177.0,92166.0,0.216997]
[1736459655799,0.216974,92177.0,92162.0,0.434017]
[1736459656847,0.001,92173.0,92162.0,0.217008]
[1736459656983,0.001,92173.0,92168.0,0.216994]
[1736459657434,0.216967,92180.0,92168.0,0.216994]
[1736459657647,0.001,92177.0,92170.0,0.0776]
[1736459657817,0.001,92177.0,92176.0,0.216976]
[1736459658250,0.02991415,92186.0,92170.0,0.0776]
[1736459658672,0.216968,92180.0,92170.0,0.28558798]
[1736459658904,0.13574935,92180.0,92164.0,0.217004]
[1736459659073,0.216987,92172.0,92161.0,0.217011]
[1736459659283,0.216973,92178.0,92165.0,0.217]
[1736459660303,0.216976,92176.0,92155.0,0.023]
[1736459660642,0.216976,92176.0,92160.0,0.10429976]
[1736459661644,0.005,92176.0,92165.0,0.217001]
[1736459661845,0.001,92176.0,92165.0,0.217001]
[1736459662247,0.005,92176.0,92165.0,0.217001]
[1736459662513,0.001,92176.0,92165.0,0.217001]
[1736459663245,0.0288655,92176.0,92165.0,0.217001]
[1736459663431,0.216969,92180.0,92165.0,0.217001]
[1736459663653,0.001,92176.0,92165.0,0.42500198]
[1736459664076,0.216976,92176.0,92165.0,0.20800098]
[1736459664287,0.004,92176.0,92165.0,0.42500198]
[1736459664586,0.24569058,92180.0,92165.0,0.42500198]
[1736459664723,0.004,92176.0,92165.0,0.42500198]
[1736459664927,0.001,92176.0,92165.0,0.42500198]
[1736459665359,0.005,92176.0,92165.0,0.42500198]
[1736459665561,0.005,92176.0,92165.0,0.20800098]
[1736459665976,0.005,92176.0,92169.0,0.216992]
[1736459666178,0.004,92176.0,92169.0,0.216992]
[1736459666608,0.005,92176.0,92165.0,0.20800098]
[1736459667191,0.262275,92177.0,92165.0,0.20800098]
[1736459667394,0.001,92176.0,92160.0,0.10429976]
[1736459667606,0.005,92176.0,92168.0,0.216992]
[1736459667817,0.24569058,92180.0,92168.0,0.216992]
[1736459668282,0.004,92176.0,92168.0,0.216992]
[1736459668488,0.001,92176.0,92168.0,0.216992]
[1736459668750,0.001,92176.0,92168.0,0.20799198]
[1736459668961,0.004,92176.0,92168.0,0.20799198]
[1736459669262,0.001,92176.0,92168.0,0.20799198]
[1736459670155,0.24569058,92180.0,92168.0,0.20799198]
[1736459670332,0.24669058,92180.0,92168.0,0.20799198]
[1736459670536,0.46765758,92180.0,92168.0,0.20799198]
[1736459670768,0.46265758,92180.0,92168.0,0.20799198]
[1736459670942,0.24568858,92180.0,92168.0,0.20799198]
[1736459671140,0.24568858,92180.0,92166.0,0.216998]
[1736459671141,0.004,92176.0,92166.0,0.216998]
[1736459671435,0.001,92176.0,92166.0,0.216998]
[1736459671634,0.216975,92177.0,92166.0,0.216998]
[1736459672266,0.003,92176.0,92166.0,0.216998]
[1736459673443,0.216975,92177.0,92166.0,0.20799798]
[1736459673741,0.217975,92177.0,92166.0,0.20799798]
[1736459673921,0.220975,92177.0,92166.0,0.20799798]
[1736459674139,0.217975,92177.0,92166.0,0.20799798]
[1736459674553,0.003,92176.0,92166.0,0.20799798]
[1736459674995,0.217975,92177.0,92166.0,0.20799798]
[1736459675429,0.219975,92177.0,92166.0,0.20799798]
[1736459676420,0.003,92177.0,92170.0,0.21699]
[1736459676781,0.001,92176.0,92170.0,0.21699]
[1736459677205,0.004,92176.0,92170.0,0.21699]
[1736459677409,0.216969,92179.0,92170.0,0.21699]
[1736459677628,0.001,92177.0,92170.0,0.21699]
[1736459677833,0.004,92177.0,92170.0,0.21699]
[1736459678155,0.001,92177.0,92170.0,0.21699]
[1736459678300,0.001,92177.0,92166.0,0.20799798]
[1736459678515,0.216978,92175.0,92161.0,0.20801098]
[1736459678925,0.216978,92175.0,92160.0,0.10429976]
[1736459678926,0.216978,92175.0,92164.0,0.217002]
[1736459680188,0.218974,92177.0,92164.0,0.217002]
[1736459680385,0.218974,92177.0,92165.0,0.217002]
[1736459680769,0.001,92176.0,92165.0,0.217002]
[1736459681305,0.002,92175.0,92165.0,0.217002]
[1736459681477,0.216974,92177.0,92165.0,0.217002]